Cogmind - Beta 14 *** ADVENTURER MODE // 2024.09.30 @ 21:28:52 Player: Knightshade Result: Destroyed by S-10 Pest with Light Assault Rifle Performance ------------- Evolutions (1) 500 Regions Visited (5) 1000 Robots Destroyed (128) 640 Value Destroyed (4541) 4541 Prototype IDs (9) 180 Alien Tech Used (0) 0 Bonus (605) 605 TOTAL SCORE: 7466 Bonus ------- High Alert Combat Kills 305 Follower Combat Kills 100 Entered Garrisons 200 Cogmind --------- Core Integrity 0/400 Matter 253/300 Energy 526/530 System Corruption 2% Temperature Cool (2) Movement Walking (470) Ox5 Location -9/Garrison Parts ------- > --- POWER (1) -------- Cooled Ion Engine > --- PROPULSION (2) --- Aluminum Leg Aluminum Leg > --- UTILITY (4) ------ Huge Storage Unit High-capacity Battery Microactuators Trap Extractor (1/4 Fusion Bomb) > --- WEAPON (2) ------- Advanced Beam Cannon Plasma Cutter > --- INVENTORY (25) --- Cooled VTOL Module Compact Matter Pod (61) Machine Analyzer Hacking Suite Authchip [Power] Authchip [Device] Authchip [Armor] Authchip [Armor] Authchip [Weapon] Relay Coupler [NC] (38) Relay Coupler [NC] (37) Relay Coupler [Grunt] (37) Relay Coupler [Grunt] (28) Relay Coupler [Sentry] (29) Relay Coupler [Heavy] (12) Relay Coupler [Behemoth] (13) Trap Extractor (0/4) Trap Extractor (0/4) Trap Extractor (4/4 Shock) Compact Ion Cannon Grenade Launcher Grenade Launcher Datajack Remote Datajack Peak State ------------ > --- POWER ------------ Improved Ion Engine > --- PROPULSION ------- Improved Treads Wheel > --- UTILITY ---------- Improved Heat Sink Huge Storage Unit Hardened Light Armor Plating Hardened Light Armor Plating > --- WEAPON ----------- Improved EM Shotgun Improved EM Shotgun > --- INVENTORY -------- Cooled Ion Engine Wheel Cooled VTOL Module High-capacity Battery Compact Matter Pod Machine Analyzer Hacking Suite Authchip [Power] Authchip [Device] Authchip [Armor] Authchip [Armor] Authchip [Weapon] Trap Extractor Trap Extractor Trap Extractor Trap Extractor Improved EM Shotgun Advanced Beam Cannon Advanced Beam Cannon Advanced Beam Cannon Compact Ion Cannon Grenade Launcher Grenade Launcher Datajack Plasma Cutter [Rating: 26] Favorites ----------- Power Improved Ion Engine Engine Improved Ion Engine Power Core Light Nuclear Core Propulsion Aluminum Leg Treads Improved Treads Leg Aluminum Leg Wheel Compact Wheel Flight Unit Improved Flight Unit Utility Huge Storage Unit Device Trap Extractor Storage Huge Storage Unit Protection Hardened Light Armor Plating Weapon Improved EM Shotgun Energy Gun Improved EM Shotgun Energy Cannon Advanced Beam Cannon Ballistic Gun Light Assault Rifle Ballistic Cannon Improved Light Cannon Launcher Grenade Launcher Special Weapon Plasma Cutter Special Melee Weapon Datajack Build | -11 -10 -10 -9 -9 -9 ------- Run | Yrd Mat Min Mat Sto Gar Slots Evolved 2 | . . . 2 . . Power . | . . . . . . Propulsion . | . . . . . . Utility 2 | . . . 2 . . Weapon . | . . . . . . Parts Attached 102 | 8 1 5 34 19 35 Power 6 | 1 . 1 2 1 1 Engine 5 | 1 . 1 1 1 1 Core 1 | . . . 1 . . Reactor . | . . . . . . Propulsion 16 | 3 . 1 7 2 3 Treads 5 | . . . 4 1 . Leg 5 | 2 . 1 . . 2 Wheel 5 | 1 . . 2 1 1 Hover . | . . . . . . Flight 1 | . . . 1 . . Utility 17 | 2 1 1 7 2 4 Device 6 | 1 . . 2 1 2 Storage 6 | 1 1 . 2 . 2 Processor . | . . . . . . Hackware . | . . . . . . Protection 5 | . . 1 3 1 . Artifact . | . . . . . . Weapon 63 | 2 . 2 18 14 27 Energy Gun 19 | . . . 3 7 9 Energy Cannon 13 | . . . 2 2 9 Ballistic Gun 7 | 2 . 2 3 . . Ballistic Cannon 3 | . . . 3 . . Launcher 7 | . . . 4 . 3 Special Weapon 7 | . . . . 3 4 Impact Weapon . | . . . . . . Slashing Weapon . | . . . . . . Piercing Weapon . | . . . . . . Special Melee Weapon 7 | . . . 3 2 2 Unidentified Prototypes 2 | . . . 1 1 . Parts Lost 19 | . 1 3 8 1 6 Power 4 | . . 1 2 . 1 Propulsion 5 | . . 1 2 . 2 Utility 6 | . 1 . 3 . 2 Weapon 4 | . . 1 1 1 1 Highest Loss Streak 2 | . 1 1 2 1 2 To Critical Strikes . | . . . . . . Average Slot Usage (%) 94 | . 88 94 96 99 90 Engine 9 | . 14 13 3 10 10 Core 1 | . . . 6 . . Treads 6 | . . . 7 11 9 Leg 9 | . 28 27 4 . 3 Wheel 5 | . . . 10 11 1 Device 7 | . 3 . 7 11 11 Storage 19 | . 14 14 20 11 27 Protection 9 | . . 10 14 21 3 Energy Gun 5 | . . . 7 15 3 Energy Cannon 4 | . . . 3 1 12 Ballistic Gun 9 | . 28 27 5 . . Special Weapon 1 | . . . . 2 3 Special Melee Weapon 1 | . . . 1 2 1 Peak Build Rating 26 | 7 9 10 23 26 26 Average Rating 17 | 5 7 9 17 23 23 On Entrance 11 | . 7 9 10 19 24 Naked Turns . | . . . . . . Heaviest Build 106 | 12 27 29 103 105 106 Greatest Support 43 | 20 20 20 43 23 23 Greatest Overweight (x) 10 | . 1 2 6 10 10 Average Overweight (x) 4 | . . 1 4 9 5 Largest Inventory Capacity 25 | 8 15 15 25 25 25 Average Capacity 21 | 7 14 15 23 25 25 Most Carried 25 | 5 14 15 25 25 25 Average Carried 19 | 1 7 14 21 24 24 Final Capacity 25 | 8 15 15 25 25 25 Final Carried 25 | 1 14 15 25 25 24 Class Distribution -------------------- 80% | Mutant 17% | Scavenger-Mutant Dominant Class ---------------- Mutant | -10/Materials Scavenger-Mutant | -10/Mines Mutant | -9/Materials Mutant | -9/Storage Mutant | -9/Garrison Resources | -11 -10 -10 -9 -9 -9 ----------- Run | Yrd Mat Min Mat Sto Gar Matter Collected 2200 | 384 497 111 669 207 332 Remotely . | . . . . . . Salvage Created 4596 | 234 665 173 1625 876 1023 Parts 285 | 18 44 19 104 50 50 Haulers Intercepted 7 | . 2 . 4 1 . Recyclers Shooed 5 | 1 . 1 3 . . Parts Field Recycled . | . . . . . . Retrieved Matter . | . . . . . . Parts Self-Destructed . | . . . . . . Prevented . | . . . . . . Kills | -11 -10 -10 -9 -9 -9 ------- Run | Yrd Mat Min Mat Sto Gar Combat Hostiles Destroyed 94 | . 11 8 35 14 26 Guns 57 | . 11 8 21 11 6 Cannons 21 | . . . 8 . 13 AOE 14 | . . . 6 1 7 Classes Destroyed 13 | 3 5 1 3 . 1 Worker 3 | 1 . . 2 . . Builder 1 | . 1 . . . . Tunneler 8 | 6 1 . 1 . . Hauler 7 | . 2 . 4 1 . Recycler 4 | 1 . . 3 . . Mechanic 2 | . 1 . . 1 . Operator 1 | . . . 1 . . Watcher 8 | . 2 . 4 2 . Swarmer 23 | . . 6 14 . 3 Grunt 51 | . 11 2 12 7 19 Duelist 2 | . . . 1 1 . Sentry 16 | . . . 8 6 2 Programmer 2 | . . . . . 2 Best Kill Streak 9 | 2 4 5 6 7 9 Combat Bots Only 9 | . 2 5 5 6 9 Max Kills in Single Turn 3 | 1 1 1 3 1 2 Gunslinging 1 | . . . 1 . . Exploded 3 | . . . 3 1 2 Melee . | . . . . . . Uniques/NPCs Destroyed . | . . . . . . Combat | -11 -10 -10 -9 -9 -9 -------- Run | Yrd Mat Min Mat Sto Gar Hostile Shots Fired 468 | . 56 38 171 76 127 Missed 133 | . 10 14 51 26 32 Damage Taken 3190 | . 431 194 1149 548 868 Core 519 | . 70 48 213 84 104 Absorbed by Shields . | . . . . . . Ignored by Resistances 970 | . 133 61 346 165 265 Core Remaining (%) 76 | 100 . 52 . . . Volleys Fired 328 | 26 73 26 117 36 50 Largest 2 | 2 2 2 2 2 2 Hottest 136 | 40 40 40 107 90 136 Shots Fired 647 | 52 146 49 233 73 94 Gun 491 | 52 146 49 147 73 24 Cannon 143 | . . . 82 . 61 Launcher 11 | . . . 4 . 7 Special 2 | . . . . . 2 Kinetic 391 | 52 146 49 144 . . Thermal 104 | . . . 41 . 63 Explosive 11 | . . . 4 . 7 Electromagnetic 141 | . . . 44 73 24 Robot Hit Streak 45 | 14 19 16 45 26 21 Robot Miss Streak 4 | 2 4 1 3 2 1 Penetration Max . | . . . . . . Secondary Targets 10 | . 3 1 3 2 1 Max Gunslinging Chain 1 | . 1 1 1 1 1 Shots Hit Robots 471 | 35 94 38 179 62 63 Core Hits 219 | 11 37 13 84 36 38 Critical Kills . | . . . . . . Critical Parts Destroyed 1 | . 1 . . . . Critical Strikes 2 | . 1 . 1 . . Destroy 1 | . 1 . . . . Blast 1 | . . . 1 . . Melee Attacks 3 | . . . 1 2 . Impact . | . . . . . . Slashing . | . . . . . . Piercing . | . . . . . . Sneak Attacks 3 | . . . 1 2 . Combat Hostiles . | . . . . . . Follow-up Attacks . | . . . . . . Damage Inflicted 7653 | 367 1013 359 3117 1249 1548 Guns 4595 | 367 1013 359 1359 1089 408 Cannons 2011 | . . . 1265 . 746 Explosions 1047 | . . . 493 160 394 Melee . | . . . . . . Ramming . | . . . . . . Kinetic 3049 | 367 1013 359 1310 . . Thermal 1846 | . . . 782 160 904 Explosive 541 | . . . 305 . 236 Electromagnetic 2217 | . . . 720 1089 408 Impact . | . . . . . . Slashing . | . . . . . . Piercing . | . . . . . . Highest Corruption 2 | . . . 1 2 2 Average Corruption 1 | . . . 1 1 2 Corruption Purged . | . . . . . . Corruption Blocked . | . . . . . . Effects 55 | . . . 12 19 24 Message Errors 14 | . . . 3 6 5 Matter Fused 13 | . . . 3 4 6 Heat Flow Errors 8 | . . . . 4 4 Energy Discharges 10 | . . . 3 2 5 Parts Rejected 1 | . . . 1 . . Data Loss (minor) 3 | . . . 1 . 2 Data Loss (major) 3 | . . . 1 2 . Misfires 3 | . . . . 1 2 Overload Shots . | . . . . . . Overflow Damage 56 | . . . 54 . 2 Projectiles 27 | . . . 27 . . Explosions 29 | . . . 27 . 2 Melee . | . . . . . . Knockbacks 3 | . . . 3 . . Impact . | . . . . . . Kinetic 3 | . . . 3 . . Secondary . | . . . . . . Self-Inflicted Damage 88 | . . . 46 30 12 Shots 8 | . . . 4 2 2 Rammed . | . . . . . . Targets Rammed . | . . . . . . Kicked . | . . . . . . Crushed . | . . . . . . Highest Temperature 555 | . 24 43 397 555 300 Average Temperature 99 | . 8 16 86 170 94 Received Heat Transfer 1572 | . 315 84 462 264 447 Effects 14 | . . . 2 10 2 Shutdowns 4 | . . . 1 3 . Energy Bleed 7 | . . . . 5 2 Interference 3 | . . . 1 2 . Siege Activations . | . . . . . . Robots Corrupted 3 | . . . 1 2 . Combat Hostiles 2 | . . . . 2 . Parts Fried 20 | . . . 10 10 . Impact Corruptions . | . . . . . . Robots Melted . | . . . . . . Combat Hostiles . | . . . . . . Parts Melted 2 | . . . . 1 1 Heat Transferred 3068 | . . . 1373 250 1445 Parts Sabotaged . | . . . . . . Parts Stolen . | . . . . . . Parts Stripped . | . . . . . . Power Chain Reactions 11 | . . . 4 3 4 Alert | -11 -10 -10 -9 -9 -9 ------- Run | Yrd Mat Min Mat Sto Gar Peak Influence 1778 | 40 245 178 332 219 1778 Initial 33 | . 22 33 . 5 2 Average 261 | 15 85 24 111 79 738 Maximum Alert Level 5 | . 1 . 1 1 5 Low Security (%) 68 | 100 93 100 87 87 9 Level 1 9 | . 6 . 12 12 11 Level 2 10 | . . . . . 38 Level 3 4 | . . . . . 15 Level 4 4 | . . . . . 15 Level 5 2 | . . . . . 9 High Security . | . . . . . . Max Security . | . . . . . . Squads Dispatched 5 | . 2 . 2 1 . Investigation 4 | . 2 . 2 . . Extermination . | . . . . . . Reinforcement 1 | . . . . 1 . Assault . | . . . . . . Garrison . | . . . . . . Intercept . | . . . . . . Searches Triggered . | . . . . . . Construction Impeded 1 | . . . . 1 . Haulers Reinforced . | . . . . . . Active Scanning Responses . | . . . . . . Cargo Convoy Interrupts . | . . . . . . Stealth | -11 -10 -10 -9 -9 -9 --------- Run | Yrd Mat Min Mat Sto Gar Distress Signals 5 | . . . 2 3 . Communications Jammed . | . . . . . . Distress Signals . | . . . . . . Times Spotted 132 | . 22 9 47 20 34 Peak Tracking Total 8 | . 4 3 5 6 8 Tactical Retreats 4 | . . 1 1 1 1 Traps | -11 -10 -10 -9 -9 -9 ------- Run | Yrd Mat Min Mat Sto Gar Traps Triggered 8 | . 2 . 2 1 3 Indirectly . | . . . . . . Trap Hack Attempts 71 | . . . 36 . 35 Triggered . | . . . . . . Disarmed 1 | . . . 1 . . Reprogrammed 12 | . . . 5 4 3 Reused . | . . . . . . Traps Extracted 8 | . . . 5 . 3 Installed . | . . . . . . Triggered 2 | . . . 2 . . Most Traps Carried 5 | . . . 5 5 5 Machines | -11 -10 -10 -9 -9 -9 ---------- Run | Yrd Mat Min Mat Sto Gar Machines Disabled 15 | . . . 2 4 9 Max in Single Turn 2 | . . . 2 1 2 Garrison Relay 5 | . . . . . 5 Phase Generator 1 | . . . . . 1 Machines Repaired . | . . . . . . Machines Dismantled 10 | . . . . 4 6 Machines Sabotaged . | . . . . . . Overloaded Fab Kills . | . . . . . . Hacking | -11 -10 -10 -9 -9 -9 --------- Run | Yrd Mat Min Mat Sto Gar Machines Accessed 34 | . 9 . 13 11 1 Terminals 27 | . 7 . 9 10 1 Fabricators . | . . . . . . Repair Stations . | . . . . . . Recycling Units 4 | . 2 . 2 . . Scanalyzers 2 | . . . 2 . . Garrison Access 1 | . . . . 1 . Total Hacks 106 | . 27 . 47 30 2 Successful 71 | . 15 . 35 20 1 Failed 35 | . 12 . 12 10 1 Catastrophic 5 | . 1 . 1 2 1 Database Lockouts . | . . . . . . Manual 67 | . 20 . 29 17 1 Terminals 89 | . 24 . 34 29 2 Fabricators . | . . . . . . Repair Stations . | . . . . . . Recycling Units 7 | . 3 . 4 . . Scanalyzers 9 | . . . 9 . . Garrison Access 1 | . . . . 1 . Terminal Hacks 32 | . 6 . 13 12 1 Part Schematic 2 | . . . . 2 . Robot Analysis 1 | . . . 1 . . Prototype ID Bank 6 | . 3 . 3 . . Open Door 3 | . . . . 3 . Emergency Access Points 1 | . . . . . 1 Terminal Index 1 | . . . 1 . . Recycling Unit Index 1 | . . . 1 . . Scanalyzer Index 1 | . . . . 1 . Alert Level 2 | . . . 1 1 . Locate Traps 6 | . 1 . 3 2 . Reprogram Traps 1 | . . . . 1 . Hauler Manifests 1 | . . . 1 . . Registered Components 2 | . . . 1 1 . Registered Prototypes 1 | . . . 1 . . Zone Layout 3 | . 2 . . 1 . Fabricator Hacks . | . . . . . . Repair Station Hacks . | . . . . . . Recycling Unit Hacks 7 | . 3 . 4 . . Report Inventory 5 | . 2 . 3 . . Retrieve Components 2 | . 1 . 1 . . Scanalyzer 9 | . . . 9 . . Insert Component 4 | . . . 4 . . Analyze 5 | . . . 5 . . Garrison Access Hacks 1 | . . . . 1 . Unlock Access 1 | . . . . 1 . Unauthorized Hacks 22 | . 6 . 9 7 . Terminals 22 | . 6 . 9 7 . Assimilate 2 | . . . 2 . . Botnet 19 | . 6 . 6 7 . Operators 1 | . . . 1 . . Fabricators . | . . . . . . Repair Stations . | . . . . . . Recycling Units . | . . . . . . Scanalyzers . | . . . . . . Garrison Access . | . . . . . . Data Cores Recovered 1 | . . . 1 . . Used . | . . . . . . Hacking Detections 27 | . 8 . 11 7 1 Full Trace Events 2 | . 1 . 1 . . Feedback Events . | . . . . . . Feedback Blocked . | . . . . . . Robot Schematics Acquired . | . . . . . . Robots Built . | . . . . . . Authchips . | . . . . . . Time . | . . . . . . Total Robot Build Rating . | . . . . . . Part Schematics Acquired 6 | . . . 4 2 . Parts Built . | . . . . . . Authchips . | . . . . . . Time . | . . . . . . Total Part Build Rating . | . . . . . . Parts Repaired . | . . . . . . Time . | . . . . . . Parts Recycled . | . . . . . . Recycled Matter . | . . . . . . Retrieved Matter . | . . . . . . Retrieved Components 7 | . 1 . 6 . . Parts Scanalyzed 4 | . . . 4 . . Part Schematics Acquired 4 | . . . 4 . . Parts Damaged . | . . . . . . Bothacking | -11 -10 -10 -9 -9 -9 ------------ Run | Yrd Mat Min Mat Sto Gar Used RIF Installer . | . . . . . . Robots Hacked 2 | . . . 1 1 . Non-combat 2 | . . . 1 1 . Combat . | . . . . . . Robot Hacks Applied 2 | . . . 1 1 . parse_system 1 | . . . . 1 . no_distress 1 | . . . 1 . . Relay Couplers Released 21 | . . . . . 21 Machine Destruction 21 | . . . . . 21 Fabnet Peak Effective % . | . . . . . . Robots Rewired . | . . . . . . Allies Hacked . | . . . . . . Hacks Repelled . | . . . . . . Allies | -11 -10 -10 -9 -9 -9 -------- Run | Yrd Mat Min Mat Sto Gar Total Allies 12 | . . 1 1 10 . Largest Group 10 | . . 1 1 10 9 Highest-Rated Group 88 | . . 31 10 88 80 Highest-Rated Ally 31 | . . 31 10 16 16 Total Orders . | . . . . . . Ally Attacks 32 | . . . . . 32 Total Damage 283 | . . . . . 283 Kills 4 | . . . . . 4 Allies Corrupted . | . . . . . . Allies Melted . | . . . . . . Intel | -11 -10 -10 -9 -9 -9 ------- Run | Yrd Mat Min Mat Sto Gar Robot Analysis Total 1 | . . . 1 . . Derelict Logs Recovered 2 | . . 2 . . . Drone Launches . | . . . . . . Drone Recoveries . | . . . . . . Exploration | -11 -10 -10 -9 -9 -9 ------------- Run | Yrd Mat Min Mat Sto Gar Turns Passed 10817 | 295 1554 1396 2849 1735 2988 Spaces Moved 4028 | 177 714 651 1239 608 639 Core 8 | 8 . . . . . Treads 441 | . . . 34 25 382 Legs 1667 | 169 714 651 41 . 92 Wheels 1912 | . . . 1164 583 165 Hover . | . . . . . . Flight . | . . . . . . Fastest Speed 50 | 50 120 190 115 190 215 Average Speed 225 | 116 183 190 183 234 411 Slowest Speed 480 | 120 190 260 480 480 480 Overloaded Moves . | . . . . . . Propulsion Burnouts . | . . . . . . Robots Hopped . | . . . . . . Cave-ins Triggered . | . . . . . . Exploration Rate (%) 71 | 7 97 94 73 80 76 Regions Visited 5 Branch Regions 2 Pre-discovered Areas . | . . . . . . Known Exits Taken 2 | . . . 1 1 . Unknown Exits Taken 3 | 1 1 1 . . . Scrap Searched 1 | . . 1 . . . Spaces Dug . | . . . . . . Terrain Destroyed 155 | . . . 36 9 110 Melee . | . . . . . . Projectile . | . . . . . . AOE 155 | . . . 36 9 110 Terrain Rammed . | . . . . . . Walls Destroyed . | . . . . . . Machines Disabled . | . . . . . . Actions | -11 -10 -10 -9 -9 -9 --------- Run | Yrd Mat Min Mat Sto Gar Total 5056 | 219 824 763 1594 804 852 Wait 360 | . 22 73 127 107 31 Move 4023 | 176 713 650 1238 607 639 Hop . | . . . . . . Pick Up 78 | 8 14 7 31 7 11 Fast Attach . | . . . . . . Attach 38 | 8 . 4 16 2 8 Detach 1 | 1 . . . . . Swap 64 | . 1 1 18 17 27 Drop 24 | . 1 2 10 5 6 Fire 328 | 26 73 26 117 36 50 Melee 3 | . . . 1 2 . Ram . | . . . . . . Kick . | . . . . . . Crush . | . . . . . . Escape Stasis 24 | . . . . . 24 Rewire 3 | . . . . 3 . Trap 71 | . . . 36 . 35 Miscellaneous 39 | . . . . 18 21 Route ------- -11/Scrapyard -10/Materials (discovered 6 exits: *Mat x3 / [*Min x2] / [*Sub]) -10/Mines (discovered 3 exits: *Mat x2 / [*Exi]) -9/Materials (discovered 5 exits: [*Mat x2] / [*Min] / *Sto x2) -9/Storage -9/Garrison (discovered 2 exits: [*Mat x2]) History --------- Turn | Location | Event 16 | -11/Scrapyard | Discovered new exit (range 15) 296 | -11/Scrapyard | Entered Materials 317 | -10/Materials | Build established: Mutant 392 | -10/Materials | Discovered new exit (range 14) 554 | -10/Materials | Discovered new exit (range 10) 782 | -10/Materials | Discovered new exit (range 8) 1230 | -10/Materials | Discovered new exit (range 7) 1594 | -10/Materials | Discovered new exit (range 8) 1771 | -10/Materials | Discovered new exit (range 14) 1850 | -10/Materials | Entered Mines 1853 | -10/Mines | Received a Mining Laser from a helpful Derelict 1887 | -10/Mines | Learned Materials garrison access intel 2805 | -10/Mines | Build established: Scavenger-Mutant 2978 | -10/Mines | Discovered new exit (range 9) 3114 | -10/Mines | Discovered new exit (range 14) 3182 | -10/Mines | Deemed a non-threat by the Exiles lab entrance 3182 | -10/Mines | Discovered new exit (range 5) 3246 | -10/Mines | Entered Materials 3246 | -9/Materials | Evolved 2 slots: Utility x2 3247 | -9/Materials | Identified exit to Storage 4291 | -9/Materials | Build established: Mutant 4450 | -9/Materials | Discovered new exit (range 11) 4715 | -9/Materials | Discovered exit to Storage (range 16) 5192 | -9/Materials | Core integrity fell below 50% 5201 | -9/Materials | Discovered new exit (range 16) 5790 | -9/Materials | Discovered new exit (range 16) 6095 | -9/Materials | Entered Storage 6095 | -9/Storage | Accompanied by 1 ally 6630 | -9/Storage | Build established: Scavenger-Mutant 7024 | -9/Storage | Build established: Mutant 7740 | -9/Storage | Assisted by bots powering up and referring to "LRC-V3" 7810 | -9/Storage | Identified exit to Garrison 7830 | -9/Storage | Entered Garrison 7830 | -9/Garrison | Accompanied by 9 allies 7850 | -9/Garrison | Triggered checkpoint 7906 | -9/Garrison | Triggered checkpoint 7985 | -9/Garrison | Lost 3 allies 8080 | -9/Garrison | Triggered checkpoint 8115 | -9/Garrison | Lost 3 allies 8132 | -9/Garrison | Destroyed 9 combat bots 8260 | -9/Garrison | Triggered checkpoint 8332 | -9/Garrison | Core integrity fell below 20% 8344 | -9/Garrison | Garrison Relay disabled 8466 | -9/Garrison | Garrison Relay disabled 8729 | -9/Garrison | Garrison Relay disabled 8834 | -9/Garrison | Discovered new exit (range 10) 9427 | -9/Garrison | Discovered new exit (range 10) 9714 | -9/Garrison | Triggered checkpoint 9838 | -9/Garrison | Phase Generator disabled 9921 | -9/Garrison | Garrison Relay disabled 10392 | -9/Garrison | Triggered checkpoint 10613 | -9/Garrison | Garrison Relay disabled 10786 | -9/Garrison | Triggered checkpoint 10818 | -9/Garrison | Destroyed by S-10 Pest with Light Assault Rifle Last Messages --------------- 10540_ Dropped Imp. Treads. 10541_ Acquired Unknown Device. 10542_ Identified Microactuators. 10605_ System corrupted: Matter fused (-8). 10607_ Dismantling Garrison Relay with Plasma Cutter. 10613_ Garrison Relay dismantled. 10613_ Relay Coupler [Swarmer] tumbles out of relay unit. 10613_ Relay Coupler [NC] tumbles out of relay unit. 10613_ Relay Coupler [Sentry] tumbles out of relay unit. 10613_ Relay Coupler [Grunt] tumbles out of relay unit. 10613_ Relay Coupler [Behemoth] tumbles out of relay unit. 10620_ Dismantling Garrison Relay with Plasma Cutter. 10633_ Dropped Adv. Beam Cannon. 10633_ Acquired Relay Coupler [Behemoth]. 10680_ ALERT: Garrison interior compromised. 10702_ M4ZG3Z3IXW|GEXAD/:OUPVCMWWOA 10746_ System corrupted: Energy discharge (-174). 10769_ System corrupted: Matter fused (-9). 10815_ C-30 ARC bursts open, deploying its payload. 10815_ S-10 Pest unfolds itself. Map ----- +----------------------------------------------------+ | ?????????????# #??????????#??????????#???????????? | | ?????????????# #?????????????????????????????????? | | ?????????????# ###### "??????????????????????????? | | ?????????????# "??????????????????????????? | | ?????????????# ###### "??????????????????????????? | | ?????????????# #?????????????????????????????????? | | ?????????????# #?????????????????????????????????? | | ?????????????# #?????????????????????????????????? | | ????????????## ##?????? ???????????????????????? | | ????????????#! !#?????# #??????????#???????????? | | ????????????#! #####!" #??????????????????????? | | ????????????#! ==*!%[=" %#??????????????????????? | | ????????????#! !#####%"sss#??????????????????????? | | ????????????#! !#?????# #?????#????????????????? | | ????????????## ##?????# #???# ###??????????????? | | ###??????????# #??????# ^ #??"""""#??#???????????? | | #T####???????# #??????# ###" " ??????????????? | | #???????# #????### "#??????????????? | | #???????# ######% "#??????????????? | | #???????# [=!!%% "#??????????????? | | ## #???????# ######* ?#??????????????? | | ?# #???????# #??????# ^ ???????#???????????? | | ?# #???????# ########^^^#??????????????????????? | | ?# #???????# #??????????????????????? | | ?# #######?# ######## #??????????????????????? | | ?# ## !%%#?# #??????# @#??????????????????????? | | ?# ## ===### ######## #??????????????????????? | | ## !% #??????????????????????? | | " #??????????????????????? | | ## ????????????????????? | | ?# ## ## ############?????????????????????? | | ## ## ## #????????????????????????????????? | | % "????????????????????????????????? | | * "????????????????????????????????? | | =[[ "????????????????????????????????? | | %= % "????????????????################# | | ## ## # #????????????????#"#^ # | | ## "" ^&& # #????????????????# ! ########### # | | !%=%* ######???????????# !!#?????????# # | | *[ = #???????????#[ !#?????????# # | | ## %== != #### #???????????#"#[#????????? | | ?# [##[ = ## ##??# #???????????### #??????### | | ?# ## [ ## #???# #?????????????# ###????# | | ?# ######## #???# #????###??????# #????# | | #??????# #???# #????# ???#### ### ## | | ## #??????# #???# ######""=###""" " | | ?# #??????# #???# [% !!*!"% #### | | ?#^ #??????# #???# ###### ""### "" ###????# | | ## #??????# ##### ##???# #???#=## #??????# | | ^#???#### #???# #???# # #??????# # | +----------------------------------------------------+ Best States ------------- Heat Dissipation 42 Energy Generation 14 Energy Capacity 530 Matter Stores 450 Matter Capacity 450 Sight Range 16 Terrain Scan Density 10 ECM Strength 1 Armor Coverage 300 Resistance: KI 20 Resistance: TH 20 Resistance: EX 20 Resistance: EM 20 Resistance: I 20 Resistance: S 20 Resistance: P 20 Melee Speed Boost 20 Evasion (%) 55 Recoil Reduction 2 Offensive Hacking 10 Authchip Count 5 Trap Extractor Capacity 4 Item Schematics ----------------- Huge Storage Unit | -9/Materials | Scanalyzed Lgt. Nuclear Core | -9/Materials | Scanalyzed Particle Cannon | -9/Materials | Scanalyzed Machine Analyzer | -9/Materials | Scanalyzed Greatsword | -9/Storage | Hacked Med. Armor Plating | -9/Storage | Hacked Robot Schematics ------------------ None Fabricated ------------ Nothing Alien Tech Used ----------------- None Achievements -------------- None Challenges ------------ None Game ------ Seed VoltaicArmorPurifier Manual? 0 Play Time 02:49:26 Cumulative 92.6 hours Start 2024.09.28 @ 12:55:11 End 2024.09.30 @ 21:28:52 Sessions 3 Manual Loads 0 Difficulty Adventurer Special Mode None Game No. 65 Rogue 0 Adventurer 65 Explorer 0 Win Type - Total 0 Types 0/0/0/0/0/0/0/0/0 Lore% 21 Gallery% 43 Achievement% 36 Wizard Run 0 Options --------- Layout 0 ASCII 0 Keyboard 0 Movement Mouse Keybinds 0 Fullscreen 1 Font 18/SmallcapsGlow Map View 76x50 Zoom Use 0% Tactical HUD 1 Map Filters NONE Filters NONE Steam 1 RUN: f664a89c-bc5b-47ad-a118-d04832c47a00